bitfinex/quotes_ETHUSD_20260108
["timestamp","ask_amount","ask_price","bid_price","bid_amount"]
[1767850239448,1.30279946,3153.0,3152.3,1.28375058]
[1767850240469,1.30279946,3153.0,3152.6,0.002]
[1767850240769,0.001,3152.9,3152.6,1.28375058]
[1767850243257,0.001,3152.9,3152.6,0.002]
[1767850249597,0.001,3152.9,3152.6,1.28375058]
[1767850254183,0.001,3152.9,3152.6,0.002]
[1767850254381,1.30379946,3152.9,3152.6,0.002]
[1767850254902,1.30279946,3152.8,3152.6,0.002]
[1767850255416,1.30279946,3152.6,3152.3,0.002]
[1767850257437,4.4748851,3152.5,3152.3,0.002]
[1767850258111,1.30279946,3152.5,3152.3,0.002]
[1767850258606,3.17202218,3152.6,3152.3,0.002]
[1767850258801,4.01999295,3152.6,3152.3,0.002]
[1767850259460,5.32279241,3152.6,3152.3,0.002]
[1767850260232,0.833,3152.5,3152.3,0.002]
[1767850262023,4.00509033,3152.5,3152.3,0.002]
[1767850262533,4.85299642,3152.6,3152.3,0.002]
[1767850264725,4.85399642,3152.6,3152.3,0.002]
[1767850264916,6.18900247,3152.6,3152.3,0.002]
[1767850266633,4.10825348,3152.5,3152.3,0.002]
[1767850269328,3.17216456,3152.5,3152.3,0.002]
[1767850269730,4.5286753,3152.5,3152.3,0.002]
[1767850271657,1.35651074,3152.4,3152.3,0.002]
[1767850273653,4.52869701,3152.4,3152.0,0.002]
[1767850274549,1.35651074,3152.3,3152.0,0.002]
[1767850277050,4.52888644,3152.3,3152.0,0.002]
[1767850277251,1.35651074,3152.2,3152.0,0.002]
[1767850279361,3.17248818,3152.1,3152.0,0.002]
[1767850279544,5.36199892,3152.1,3152.0,0.002]
[1767850279962,4.00548818,3152.1,3152.0,0.002]
[1767850281229,5.36199892,3152.1,3151.4,1.34937634]
[1767850281455,4.00548818,3152.1,3151.4,1.34937634]
[1767850282278,0.833,3152.1,3151.4,1.34937634]
[1767850282476,0.833,3152.1,3151.6,1.34937634]
[1767850283660,3.17235765,3152.3,3151.6,1.34937634]
[1767850283876,0.833,3152.2,3151.6,1.34937634]
[1767850284292,3.17235765,3152.3,3151.6,1.34937634]
[1767850284488,3.17228445,3152.4,3151.6,1.34937634]
[1767850284651,4.00528445,3152.4,3151.7,1.34937634]
[1767850285393,8.53407964,3152.4,3151.7,1.34937634]
[1767850285863,5.36179519,3152.4,3151.7,1.34937634]
[1767850286355,4.00528445,3152.4,3151.7,1.34937634]
[1767850287000,1.35651074,3152.3,3151.7,1.34937634]
[1767850287177,1.35651074,3152.3,3151.4,1.34937634]
[1767850287382,1.35751074,3152.6,3151.6,1.34937634]
[1767850287696,1.35651074,3152.3,3151.6,1.34937634]
[1767850287856,3.17238753,3152.2,3151.6,1.34937634]
[1767850288491,4.5288391,3152.3,3151.6,1.34937634]
[1767850288659,5.38223233,3152.3,3151.6,1.34937634]
[1767850288981,8.55456069,3152.3,3151.6,1.34937634]
[1767850289175,1.35651074,3152.2,3151.6,1.34937634]
[1767850289357,1.35651074,3152.2,3151.7,0.002]
[1767850289757,1.35751074,3152.1,3151.7,0.002]
[1767850289958,2.21306681,3152.1,3151.7,0.002]
[1767850290157,0.001,3152.1,3151.7,0.002]
[1767850292989,0.001,3152.1,3151.7,1.37271296]
[1767850297299,0.001,3152.1,3151.7,0.002]
[1767850298070,1.45847855,3152.1,3151.7,0.002]
[1767850298767,4.63098739,3152.1,3151.7,0.002]
[1767850299189,1.92057729,3152.0,3151.7,0.002]
[1767850299389,1.45747855,3151.9,3151.7,0.002]
[1767850300696,5.09318071,3152.0,3151.7,0.002]
[1767850301102,1.45747855,3151.9,3151.7,0.002]
[1767850301266,1.96689662,3151.9,3151.7,0.002]
[1767850302500,0.50941807,3151.9,3151.7,0.002]
[1767850305009,4.63019305,3151.9,3151.7,0.002]
[1767850305781,1.45747855,3151.8,3151.4,0.002]
[1767850307684,4.63027767,3151.8,3151.4,0.002]
[1767850309403,1.45747855,3151.7,3151.4,0.002]
[1767850309599,2.00380632,3151.7,3151.4,0.002]
[1767850311920,5.17670829,3151.7,3151.4,0.002]
[1767850312928,2.00380632,3151.7,3151.4,0.002]
[1767850314620,0.001,3152.1,3151.4,1.37271296]
[1767850314919,0.001,3152.1,3151.5,1.37071296]
[1767850315101,0.834,3152.1,3151.5,1.37071296]
[1767850317094,4.00648862,3152.1,3151.5,1.37071296]
[1767850317407,1.45747855,3152.0,3151.4,0.002]
[1767850317807,1.45747855,3152.0,3151.4,1.37271296]
[1767850319322,1.45747855,3152.0,3151.4,1.82731163]
[1767850319896,0.001,3152.1,3151.5,1.37071296]
[1767850320605,3.17349515,3152.1,3151.5,1.37071296]
[1767850320923,0.001,3152.1,3151.5,1.37071296]
[1767850321109,0.001,3152.1,3151.5,1.99331192]
[1767850321941,0.001,3152.6,3151.8,1.37071296]
[1767850322112,0.833,3152.5,3151.8,0.40963175]
[1767850322298,0.001,3152.6,3151.8,0.40963175]
[1767850322622,0.833,3152.7,3152.2,0.41151894]
[1767850323025,2.23069953,3152.7,3152.0,0.41151894]
[1767850323242,1.39769953,3152.6,3151.5,0.41151894]
[1767850323401,1.39769953,3152.4,3151.5,0.41151894]
[1767850325619,1.39769953,3152.2,3151.5,0.41151894]
[1767850325820,2.68769817,3152.1,3151.5,0.41151894]
[1767850326016,0.001,3152.3,3151.7,0.41709832]
[1767850331043,0.001,3152.3,3151.7,3.58998499]
[1767850331354,0.001,3152.3,3151.8,0.42764211]
[1767850331635,1.33470689,3152.8,3152.1,0.42935048]
[1767850331808,1.33470689,3152.6,3151.8,0.42935048]
[1767850332014,2.16770689,3152.5,3151.8,0.42935048]
[1767850332440,1.33470689,3152.4,3151.8,0.42935048]
[1767850333941,1.33470689,3152.4,3151.7,3.17288667]
[1767850334142,1.33470689,3152.4,3151.7,1.11772539]
[1767850334346,1.33470689,3152.3,3151.6,0.43267405]
[1767850334836,1.33470689,3152.3,3151.6,3.6056346]
[1767850336347,1.33470689,3152.3,3151.7,0.43747909]
[1767850336935,1.33470689,3152.5,3151.7,0.43747909]
[1767850337136,1.33470689,3152.7,3152.0,0.43747909]
[1767850337340,1.33470689,3152.7,3152.1,0.43747909]
[1767850340044,1.33470689,3152.6,3151.9,0.44414775]
[1767850340568,1.33470689,3152.6,3151.9,0.002]
[1767850341947,1.33470689,3152.4,3151.9,0.002]
[1767850344372,1.33470689,3152.3,3151.9,0.002]
[1767850344940,1.33470689,3152.6,3151.9,0.45158786]
[1767850345125,1.33470689,3152.8,3151.9,0.45158786]
[1767850345325,1.33470689,3152.8,3152.0,0.44958786]
[1767850346034,0.001,3152.9,3152.0,0.44958786]
[1767850346250,0.001,3152.9,3152.3,0.45101912]
[1767850348150,1.33570689,3152.9,3152.1,0.45383974]
[1767850348470,1.33470689,3152.8,3152.1,0.49465183]
[1767850348769,1.33470689,3152.8,3151.9,4.11489157]
[1767850350259,1.33470689,3152.8,3152.2,0.002]
[1767850350445,1.33470689,3152.7,3152.2,0.002]
[1767850350644,0.001,3152.5,3152.2,0.002]
[1767850352067,1.33570689,3152.5,3152.2,0.002]
[1767850358367,0.001,3152.5,3152.2,0.002]
[1767850364992,0.001,3152.9,3152.5,0.47647231]
[1767850365190,1.42792599,3153.2,3152.5,0.47647231]
[1767850367093,1.42792599,3153.4,3152.7,0.47871065]
[1767850367772,0.833,3153.5,3152.7,0.47871065]
[1767850367972,2.26092599,3153.5,3152.7,0.47871065]
[1767850368172,2.26092599,3153.5,3152.8,1.28473903]
[1767850368486,1.42792599,3153.4,3152.8,1.28473903]
[1767850368693,1.42792599,3153.6,3152.9,0.48088422]
[1767850369468,1.42792599,3153.5,3152.8,0.80493736]
[1767850370089,1.42792599,3153.5,3152.7,0.48197102]
[1767850370595,1.44866087,3153.4,3152.6,3.17194789]
[1767850371680,1.44866087,3153.4,3152.6,3.65708895]
[1767850374991,1.44866087,3153.4,3152.7,0.48818547]
[1767850376900,1.44866087,3153.4,3152.9,0.002]
[1767850377400,0.001,3153.1,3152.9,0.002]
[1767850377704,1.44866087,3153.4,3152.9,0.36820237]
[1767850378271,1.44866087,3153.8,3152.9,0.86025417]
[1767850378476,1.44866087,3153.8,3153.0,0.4920518]
[1767850379397,1.44866087,3153.8,3152.9,0.002]
[1767850380200,1.44866087,3153.6,3152.9,0.002]
[1767850382305,1.45655072,3153.4,3152.9,0.002]
[1767850382610,1.45655072,3153.2,3152.9,0.002]
[1767850382806,1.45655072,3153.2,3152.5,0.002]
[1767850384506,1.45655072,3153.0,3152.5,0.002]
[1767850386909,1.41779301,3152.8,3152.5,0.002]
[1767850389122,1.41779301,3152.7,3152.5,0.002]
[1767850389436,1.41779301,3152.6,3152.5,0.002]
[1767850389837,1.41779301,3152.6,3152.2,0.002]
[1767850390343,1.41779301,3152.6,3151.9,0.002]
[1767850391505,1.41779301,3152.4,3151.9,0.002]
[1767850392816,1.41779301,3152.6,3151.9,0.50995389]
[1767850393426,1.41779301,3152.8,3152.1,0.50873127]
[1767850393733,1.87674063,3152.7,3152.1,0.50873127]
[1767850393923,1.41779301,3152.6,3151.9,3.68338239]
[1767850395044,1.41779301,3152.6,3152.0,0.5094911]
[1767850398415,3.17178911,3152.8,3152.1,0.51249673]
[1767850398416,1.41779301,3152.8,3152.1,0.51249673]
[1767850399848,1.41779301,3152.7,3151.9,3.68787831]
[1767850400020,1.41779301,3152.7,3152.0,3.54136729]
[1767850400220,1.41779301,3152.7,3152.0,0.88201476]
[1767850400531,1.41779301,3152.7,3151.9,3.17465144]
[1767850400532,1.41779301,3152.6,3151.9,0.002]
[1767850401733,1.41779301,3152.6,3152.4,0.002]
[1767850403467,3.17161501,3153.0,3152.4,0.002]
[1767850403666,1.41779301,3152.9,3152.4,0.002]
[1767850404470,4.58957682,3152.8,3152.4,0.002]
[1767850405050,1.41779301,3152.8,3152.4,0.002]
[1767850406769,4.58960162,3152.8,3152.4,0.002]
[1767850407365,1.41779301,3152.8,3152.4,0.002]
[1767850408962,4.58958527,3152.8,3152.4,0.002]
[1767850409160,3.17171778,3152.9,3152.4,0.002]
[1767850409570,4.58951079,3152.9,3152.4,0.002]
[1767850409768,1.41779301,3152.9,3152.4,0.002]
[1767850412190,1.45319957,3153.3,3152.5,1.39695857]
[1767850413052,4.00407975,3153.5,3152.5,1.39695857]
[1767850413254,1.45319957,3153.4,3152.5,4.5689852]
[1767850413454,1.45319957,3153.4,3152.6,1.39695857]
[1767850413687,1.45319957,3153.4,3152.7,1.85385709]
[1767850414084,2.28619957,3153.7,3152.8,1.39695857]
[1767850414266,1.45319957,3153.6,3152.8,1.39695857]
[1767850415288,0.833,3153.7,3152.8,1.39695857]
[1767850415458,7.89319957,3153.8,3152.9,1.39695857]
[1767850415655,0.833,3153.9,3153.1,1.39695857]
[1767850416756,0.001,3154.1,3153.1,1.39695857]
[1767850417316,1.45419957,3154.1,3153.1,1.39695857]
[1767850417513,0.001,3154.1,3153.3,1.39695857]
[1767850418606,1.45419957,3154.1,3153.3,1.39695857]
[1767850418915,1.45419957,3154.1,3153.4,1.85379257]
[1767850419900,1.45419957,3154.1,3153.5,1.39695857]
[1767850420629,1.45419957,3154.1,3153.1,3.17146046]
[1767850420630,1.45319957,3154.0,3153.0,0.45686712]
[1767850421819,1.45319957,3153.8,3153.0,0.45686712]
[1767850424031,1.45319957,3153.7,3153.0,0.45686712]
[1767850424200,1.45319957,3153.7,3153.1,0.50254999]
[1767850425831,1.45319957,3153.7,3153.0,0.45686712]
[1767850426368,1.45319957,3153.7,3153.0,3.62844663]
[1767850426668,1.45319957,3153.7,3153.0,5.0254052]
[1767850427661,1.45319957,3153.7,3153.0,1.85382569]
[1767850428143,1.45319957,3153.6,3153.0,1.85382569]
[1767850428343,1.45319957,3153.6,3153.1,0.18538257]
[1767850430553,1.45419957,3153.8,3153.1,1.39695857]
[1767850433663,4.6250315,3153.8,3153.1,1.39695857]
[1767850434968,1.45319957,3153.7,3153.1,1.39695857]
[1767850435267,1.45319957,3153.7,3152.9,1.39695857]
[1767850438276,0.001,3153.5,3152.9,1.39695857]
[1767850438974,1.45419957,3153.5,3152.9,1.39695857]
[1767850439174,2.23381537,3153.5,3152.9,1.39695857]
[1767850440069,1.45319957,3153.4,3152.4,7.56713911]
[1767850440273,0.7806158,3153.5,3152.4,7.56713911]
[1767850440274,4.62448045,3153.3,3152.5,1.39695857]
[1767850440853,1.45319957,3153.2,3152.5,1.39695857]
[1767850442251,0.001,3153.5,3152.5,1.39695857]
[1767850442661,1.47670306,3153.5,3152.5,1.39695857]
[1767850443275,4.6478201,3153.5,3152.5,4.56904391]
[1767850443475,5.42970739,3153.5,3152.6,1.51173995]
[1767850444381,8.60082443,3153.5,3152.6,1.51173995]
[1767850445357,1.47570306,3153.4,3152.6,1.51173995]
[1767850447266,1.47570306,3153.2,3152.4,0.002]
[1767850447476,1.47570306,3153.0,3152.4,0.002]
[1767850448704,0.46469839,3153.1,3152.4,1.51373995]
[1767850448872,1.47570306,3153.2,3152.4,1.51373995]
[1767850449397,3.17148203,3153.1,3152.4,1.51373995]
[1767850449902,0.001,3152.8,3152.4,1.51373995]
[1767850450101,3.17148203,3153.1,3152.4,1.51373995]
[1767850452106,4.74324546,3153.1,3152.4,1.51373995]
[1767850452302,5.14796661,3153.1,3152.4,1.51373995]
[1767850452495,1.57176343,3153.0,3152.4,1.51373995]
[1767850454807,4.74344507,3153.0,3152.4,0.002]
[1767850455806,7.91512671,3153.0,3152.4,0.002]
[1767850455997,1.57176343,3152.9,3152.4,0.002]
[1767850456907,4.7434915,3152.9,3152.4,0.002]
[1767850457709,1.57176343,3152.8,3152.0,0.002]
[1767850459209,1.57176343,3152.6,3152.0,0.002]
[1767850462080,1.57176343,3152.4,3152.3,0.002]
[1767850462293,1.57176343,3152.4,3152.0,0.002]
[1767850463342,4.74384907,3152.5,3152.0,0.002]
[1767850463541,0.79158502,3152.4,3152.0,0.002]
[1767850464334,3.96377434,3152.4,3152.0,0.002]
[1767850464717,0.79158502,3152.4,3152.0,0.002]
[1767850464905,1.57176343,3152.5,3152.0,0.002]
[1767850465327,4.74388648,3152.5,3152.0,0.002]
[1767850470942,3.17206849,3152.6,3152.0,1.52346972]
[1767850471115,3.17191421,3152.7,3152.0,1.52346972]
[1767850471913,1.57276343,3152.8,3152.0,1.52346972]
[1767850471914,4.74456224,3152.8,3152.0,1.52346972]
[1767850472241,3.17191421,3152.7,3152.1,1.57892081]
[1767850472445,3.17188441,3152.7,3152.1,1.57892081]
[1767850472741,1.5192571,3152.6,3152.0,0.002]
[1767850473044,3.17208564,3152.5,3152.0,1.58092081]
[1767850473244,1.5192571,3152.6,3152.0,1.58092081]
[1767850473612,3.17208564,3152.5,3152.0,1.58092081]
[1767850473816,1.5192571,3152.6,3152.0,1.58092081]
[1767850474038,3.17208564,3152.5,3152.0,1.58092081]
[1767850474344,4.69125574,3152.6,3152.0,1.58092081]
[1767850475142,1.5202571,3152.8,3152.3,0.002]
[1767850475447,3.17188441,3152.7,3152.3,0.002]
[1767850475648,3.64109856,3152.7,3152.3,0.002]
[1767850475946,8.33225963,3152.7,3152.3,0.002]
[1767850476444,1.5192571,3152.6,3152.3,0.002]
[1767850477549,4.69134274,3152.5,3152.3,0.002]
[1767850478552,1.5192571,3152.4,3152.3,0.002]
[1767850478740,3.17208564,3152.5,3152.3,0.002]
[1767850479049,1.26918759,3152.4,3152.3,0.002]
[1767850479249,3.17208564,3152.5,3152.3,0.002]
[1767850479550,3.17787397,3152.5,3152.3,0.002]
[1767850479751,3.64111078,3152.7,3152.3,0.002]
[1767850479920,3.17198502,3152.6,3152.3,0.002]
[1767850480436,0.00568681,3152.5,3152.3,0.002]
[1767850481540,3.17198502,3152.6,3152.3,0.002]
[1767850481739,0.00560332,3152.5,3152.3,0.002]
[1767850482062,0.001,3152.8,3152.3,0.002]
[1767850482432,0.00554668,3152.7,3152.3,0.002]
[1767850482961,3.1775317,3152.6,3152.3,0.002]
[1767850483964,3.17198502,3152.6,3152.3,0.002]
[1767850486372,3.17191824,3152.7,3152.3,0.002]
[1767850486537,0.31839737,3152.6,3152.3,0.002]
[1767850487259,0.31839737,3152.6,3152.1,1.57892081]
[1767850487464,6.34383648,3152.7,3152.1,1.57892081]
[1767850488071,3.17191824,3152.7,3152.1,1.57892081]
[1767850488569,6.34383648,3152.7,3152.1,1.57892081]
[1767850489065,0.03767898,3152.6,3152.0,0.002]
[1767850489750,6.34383648,3152.7,3152.1,1.57892081]
[1767850490547,0.04792561,3152.6,3152.0,0.002]
[1767850491378,0.04792561,3152.6,3152.0,1.58092081]
[1767850491553,3.22575726,3152.8,3152.2,4.39298105]
[1767850491751,3.22575726,3152.8,3152.2,5.97190186]
[1767850492060,6.39754129,3152.8,3152.2,5.97190186]
[1767850492579,6.39754129,3152.8,3152.0,0.002]
[1767850492580,0.05793958,3152.5,3152.0,0.002]
[1767850494644,3.23011032,3152.5,3152.0,0.002]
[1767850495759,0.001,3152.8,3152.0,0.002]
[1767850496075,0.01454462,3152.6,3152.0,0.002]
[1767850496275,0.01454462,3152.6,3152.0,0.24359208]
[1767850497377,3.18654449,3152.6,3152.0,0.002]
[1767850498473,3.18654449,3152.6,3152.3,0.002]
[1767850498852,0.001,3152.4,3152.3,0.002]
[1767850499055,3.18654449,3152.6,3152.3,0.002]
[1767850501073,6.35854436,3152.6,3152.3,0.002]
[1767850501373,6.9944988,3152.6,3152.3,0.002]
[1767850501578,3.82249893,3152.6,3152.3,0.002]
[1767850501747,3.80795431,3152.6,3152.3,0.002]
[1767850502068,0.63595444,3152.6,3152.3,0.002]
[1767850502382,4.12339996,3153.2,3152.3,0.002]
[1767850502383,3.17134142,3153.3,3152.5,1.63798245]
[1767850502556,0.05149529,3153.2,3152.5,1.63798245]
[1767850502754,0.05149529,3153.2,3152.4,1.63798245]
[1767850503081,0.05149529,3153.2,3152.4,1.8852807]
[1767850503677,3.23168646,3153.1,3152.4,1.8852807]
[1767850503854,3.17148203,3153.1,3152.4,1.8852807]
[1767850504384,3.23168646,3153.1,3152.4,1.8852807]
[1767850505550,0.06871623,3153.0,3152.4,1.8852807]
[1767850505755,0.06871623,3153.0,3152.5,0.18872807]
[1767850505756,3.24030997,3153.0,3152.5,0.18872807]
[1767850507082,6.3467484,3153.3,3152.5,1.8201552]
[1767850507457,3.17128088,3153.3,3152.5,1.8201552]
[1767850508171,6.34256176,3153.3,3152.5,1.8201552]
[1767850508373,0.01256672,3153.2,3152.5,1.8201552]
[1767850508592,0.01256672,3153.2,3152.6,1.83817248]
[1767850510096,0.01256672,3153.2,3152.8,0.002]
[1767850510097,3.17148203,3153.1,3152.8,0.002]
[1767850510299,0.01256672,3153.2,3152.8,0.002]
[1767850510498,0.001,3153.0,3152.8,0.002]
[1767850510701,0.01256672,3153.2,3152.8,0.002]
[1767850511402,3.1839539,3153.2,3152.8,0.002]
[1767850513901,3.17138718,3153.2,3152.8,0.002]
[1767850515010,3.17128088,3153.3,3152.8,0.002]
[1767850515181,3.84248722,3153.3,3152.8,0.002]
[1767850515883,7.0137681,3153.3,3152.8,0.002]
[1767850519323,3.84248722,3153.3,3152.8,0.002]
[1767850519528,3.84248722,3153.3,3152.8,1.63342713]
[1767850522944,0.001,3153.0,3152.8,1.62797503]
[1767850523101,3.17128088,3153.3,3152.8,1.62797503]
[1767850528640,0.001,3153.5,3153.0,1.63142713]
[1767850528843,3.1712262,3153.4,3153.0,1.63142713]
[1767850529027,0.001,3153.5,3153.0,1.63142713]
[1767850529347,3.1712262,3153.4,3153.0,1.63142713]
[1767850529848,0.001,3153.5,3153.0,1.63142713]
[1767850530142,6.44,3154.0,3153.2,1.63142713]
[1767850530344,6.3444848,3154.0,3153.2,1.63142713]
[1767850530649,0.00333072,3153.9,3153.2,1.63142713]
[1767850531127,6.34115408,3154.0,3153.2,1.63142713]
[1767850531442,3.17040213,3154.2,3153.6,1.63142713]
[1767850532727,3.17019185,3154.4,3153.8,1.65849328]
[1767850532929,3.17019185,3154.4,3153.8,1.65730082]
[1767850533717,6.339948,3154.6,3153.8,1.65730082]
[1767850533913,0.7172948,3154.5,3153.8,1.65730082]
[1767850534338,3.17017499,3154.4,3153.8,1.65730082]
[1767850543846,3.17017499,3154.4,3153.8,2.48930082]
[1767850544050,3.17017499,3154.4,3153.9,1.65849328]
[1767850546338,0.001,3154.1,3153.9,1.65849328]
[1767850548264,3.17017499,3154.4,3153.9,1.65849328]
[1767850548561,3.21212781,3154.7,3153.9,1.65849328]
[1767850548731,0.32121278,3154.6,3153.9,1.65849328]
[1767850548933,6.38200133,3154.7,3153.9,1.65849328]
[1767850549237,6.38200133,3154.7,3154.0,1.65849328]
[1767850554493,0.046107,3154.6,3153.4,1.65849328]
[1767850554638,0.046107,3154.6,3153.3,1.65849328]
[1767850554834,0.046107,3154.6,3153.4,1.65849328]
[1767850555071,0.046107,3154.4,3153.5,2.49049328]
[1767850555269,0.046107,3154.4,3153.5,1.65849328]
[1767850556174,0.04672647,3154.2,3153.5,1.65849328]
[1767850557950,3.17047652,3154.1,3153.8,0.002]
[1767850560045,3.17028783,3154.3,3153.8,0.002]
[1767850560956,6.39036821,3154.3,3153.8,0.002]
[1767850561154,7.44207464,3154.3,3153.8,0.002]
[1767850561659,0.05031381,3154.2,3153.8,0.002]
[1767850561859,0.05031381,3154.2,3153.5,0.002]
[1767850562071,0.05088612,3154.0,3153.1,1.69022243]
[1767850562377,0.05088612,3153.8,3152.7,1.69022243]
[1767850564182,0.05257552,3153.6,3152.7,1.69022243]
[1767850564486,6.3417573,3153.7,3152.7,1.69022243]
[1767850565285,3.17087865,3153.7,3152.9,1.56061526]
[1767850565457,3.17087865,3153.7,3153.1,1.56061526]
[1767850566676,6.39537236,3154.0,3153.1,1.56061526]
[1767850566874,0.05421828,3153.9,3153.1,1.56061526]
[1767850568756,6.34115408,3154.0,3153.1,1.56061526]
[1767850568956,0.72284144,3153.9,3153.1,1.56061526]
[1767850569482,6.34115408,3154.0,3153.1,1.56061526]
[1767850570188,3.17057704,3154.0,3153.2,1.56061526]
[1767850570488,3.17057704,3154.0,3153.5,1.56061526]
[1767850570691,0.001,3153.6,3153.4,0.002]
[1767850571690,0.001,3153.6,3153.4,1.56261526]
[1767850574068,0.001,3153.6,3153.4,0.002]
[1767850574588,1.61985654,3153.6,3153.0,0.002]
[1767850574793,3.17107975,3153.5,3153.0,0.002]
[1767850578193,3.17107975,3153.5,3153.0,1.56261526]
[1767850580289,4.80195289,3153.6,3153.0,1.56261526]
[1767850580765,7.97293647,3153.6,3153.0,1.56261526]
[1767850581162,8.77023012,3153.6,3153.0,0.002]
[1767850582097,8.77023012,3153.6,3153.0,1.56261526]
[1767850582616,1.63633335,3153.3,3152.5,0.002]
[1767850582892,1.63633335,3153.3,3152.5,1.56261526]
[1767850583070,1.63633335,3153.2,3152.5,1.56261526]
[1767850583870,3.17148203,3153.1,3152.5,1.56261526]
[1767850584282,3.17148203,3153.1,3153.0,0.002]
[1767850584598,3.17148203,3153.1,3152.5,1.56261526]
[1767850584974,3.17142348,3153.2,3152.5,1.56261526]
[1767850585189,3.17107975,3153.5,3152.6,1.56061526]
[1767850585401,3.58070759,3153.5,3152.6,1.56061526]
[1767850585697,6.75180504,3153.5,3152.6,1.56061526]
[1767850586600,3.17201995,3153.6,3152.9,1.56061526]
[1767850587294,0.001,3153.6,3152.9,1.56061526]
[1767850591772,1.65516576,3153.6,3152.5,1.56261526]
[1767850591977,1.65516576,3153.6,3152.7,1.56061526]
[1767850593602,6.3421595,3153.5,3152.7,1.56061526]
[1767850595877,6.3421595,3153.5,3153.0,1.61716606]
[1767850596079,0.79973253,3153.4,3153.0,1.61716606]
[1767850596279,0.001,3153.3,3153.0,1.61716606]
[1767850597543,0.001,3153.3,3153.0,0.002]
[1767850597715,1.58959824,3153.3,3153.0,0.002]
[1767850598211,3.17138145,3153.2,3153.0,0.002]
[1767850599708,2.22296775,3153.2,3152.6,0.002]
[1767850599908,1.58859824,3153.1,3152.3,1.61716606]
[1767850600111,1.58859824,3153.1,3152.3,0.002]
[1767850601791,7.93176346,3153.0,3152.3,0.002]
[1767850601992,1.58859824,3152.9,3152.3,0.002]
[1767850602197,0.79317635,3152.8,3152.3,0.002]
[1767850604212,3.17188441,3152.7,3152.3,0.002]
[1767850605819,3.17188441,3152.7,3152.3,1.61716606]
[1767850607934,1.58859824,3152.6,3151.7,0.002]
[1767850608091,1.58979179,3151.7,3150.0,3.17460121]
[1767850608293,6.34618434,3151.5,3150.1,1.61516606]
[1767850608689,3.17309217,3151.5,3150.3,1.61516606]
[1767850608917,0.00119355,3151.7,3150.8,4.39253561]
[1767850609116,0.00119355,3151.7,3151.0,1.61516606]
[1767850609623,1.58859824,3152.3,3151.2,1.61516606]
[1767850609792,1.58859824,3152.3,3151.5,1.61516606]
[1767850610201,1.58859824,3152.3,3151.2,4.39253561]
[1767850610520,1.58859824,3152.5,3151.2,1.61516606]
[1767850610521,1.58859824,3152.1,3151.2,1.61516606]
[1767850610710,1.58859824,3152.1,3151.3,0.16151661]
[1767850611616,1.58859824,3152.1,3151.3,1.77668267]
[1767850611813,1.58859824,3152.1,3151.3,1.61516606]
[1767850612421,6.34477506,3152.2,3151.3,1.61516606]
[1767850612422,4.76118707,3152.0,3151.3,1.61516606]
[1767850615600,1.58859824,3151.9,3151.3,1.61516606]
[1767850616613,4.76135053,3151.9,3151.3,1.61516606]
[1767850617505,4.76135053,3151.9,3151.0,0.002]
[1767850617506,1.58859824,3151.9,3151.0,0.002]
[1767850617712,1.58859824,3151.8,3151.0,0.002]
[1767850618023,1.58859824,3151.8,3151.0,1.61716606]
[1767850618619,4.76143664,3151.8,3151.0,1.61716606]
[1767850620048,3.1728384,3151.8,3151.0,1.61716606]
[1767850620235,1.58859824,3152.2,3151.0,1.61716606]
[1767850620529,1.58859824,3152.2,3151.2,1.61516606]
[1767850620530,7.93342482,3152.2,3151.2,1.61516606]
[1767850620714,0.833,3152.3,3151.2,1.61516606]
[1767850620919,1.58859824,3152.6,3151.8,1.61516606]
[1767850621120,1.58859824,3152.9,3151.8,1.61516606]
[1767850621431,1.83085806,3152.8,3151.8,1.61516606]
[1767850622302,1.83085806,3152.8,3151.9,1.71476679]
[1767850622726,5.00271716,3152.8,3151.9,1.71476679]
[1767850622932,3.17170225,3152.9,3152.0,1.71476679]
[1767850623231,1.76756403,3153.2,3152.5,1.73111678]
[1767850623731,4.93895088,3153.2,3152.5,1.73111678]
[1767850624325,3.17229004,3153.3,3152.5,1.73111678]
[1767850624534,0.001,3153.3,3152.5,1.73111678]
[1767850624710,0.001,3153.3,3152.7,1.73111678]
[1767850627306,0.001,3153.3,3152.7,1.72911679]
[1767850627506,1.76856403,3153.3,3152.7,1.72911679]
[1767850627707,1.76856403,3153.3,3152.7,1.72711679]
[1767850629739,4.93986309,3153.3,3152.7,1.72711679]
[1767850630838,1.76856403,3153.3,3152.7,1.72711679]
[1767850631132,4.93986894,3153.3,3152.7,1.72711679]
[1767850632558,1.76856403,3153.3,3152.7,1.72711679]
[1767850632748,0.001,3153.6,3153.0,1.73111678]
[1767850632928,3.17087865,3153.7,3153.3,1.73111678]
[1767850633127,6.3417573,3153.7,3153.3,1.73111678]
[1767850633332,6.3417573,3153.7,3152.9,1.73111678]
[1767850633533,7.15268943,3153.7,3152.9,1.73111678]
[1767850633752,3.98181078,3153.7,3152.9,1.73111678]
[1767850634051,0.81093213,3153.7,3152.9,1.73111678]
[1767850634249,3.17071835,3153.9,3153.0,1.73111678]
[1767850635250,6.3414367,3153.9,3153.0,1.73111678]
[1767850635461,8.10900073,3153.9,3153.0,1.73111678]
[1767850635626,1.76756403,3153.8,3153.0,1.73111678]
[1767850635825,1.76756403,3153.8,3153.0,1.98752846]
[1767850636134,1.76756403,3153.8,3152.6,0.17311168]
[1767850636339,1.76756403,3153.6,3152.8,1.73111678]
[1767850636854,1.76756403,3153.6,3152.8,2.56411678]
[1767850638040,1.76756403,3153.6,3152.8,0.833]
[1767850638353,1.76756403,3153.4,3152.8,0.833]
[1767850638658,1.76756403,3153.4,3152.7,0.833]
[1767850638864,1.76756403,3153.4,3152.8,1.73111678]
[1767850639957,2.57853638,3153.4,3152.8,1.73111678]
[1767850640535,3.17128088,3153.3,3152.8,1.73111678]
[1767850641365,3.17128088,3153.3,3152.8,1.72911678]
[1767850641563,4.93884491,3153.3,3152.6,2.56411678]
[1767850641772,4.9382416,3153.9,3152.9,1.73111678]
[1767850641945,6.34135514,3153.9,3152.9,1.73111678]
[1767850642147,1.76756403,3153.8,3152.9,1.73111678]
[1767850643062,4.93840642,3153.8,3152.9,1.73111678]
[1767850643264,4.93840642,3153.8,3153.0,1.73111678]
[1767850643468,4.93840642,3153.8,3153.1,2.56411678]
[1767850645937,4.9383497,3153.8,3153.2,1.73111678]
[1767850646153,0.001,3153.5,3153.2,1.73111678]